Workbook

Sheet 1. Info
AB1: Alectra Utilities Corporation - Enersource Hydro
AB2: Alectra Utilities Corporation - Horizon Utilities
AB3: Alectra Utilities Corporation - Hydro One Brampton
AB4: Alectra Utilities Corporation - PowerStream Inc.
AB5: Algoma Power Inc.
AB6: Atikokan Hydro Inc.
AB7: Attawapiskat Power Corp.
AB8: Bluewater Power Distribution Corporation
AB9: Brantford Power Inc.
AB10: Burlington Hydro Inc.
AB11: Canadian Niagara Power Inc.
AB12: Centre Wellington Hydro Ltd.
A13: Drop-down lists are shaded blue; Input cells are shaded green. | AB13: Chapleau Public Utilities Corporation
AB14: COLLUS PowerStream Corporation
C15: Utility Name | D15: Niagara-on-the-Lake Hydro Inc. | AB15: Cooperative Hydro Embrun Inc.
AB16: E.L.K. Energy Inc.
C17: Service Territory | D17: Niagara-on-the-Lake | AB17: Energy + Inc.
AB18: Entegrus Powerlines Inc.
C19: Assigned EB Number | D19: EB-2018-0056 | AB19: ENWIN Utilities Ltd.
AB20: Erie Thames Powerlines Corporation
C21: Name and Title | D21: Jeff Klassen, VP Finance | AB21: Espanola Regional Hydro Distribution Corporation
AB22: Essex Powerlines Corporation
C23: Phone Number | D23: 905-468-4235 ext 380 | AB23: Festival Hydro Inc.
AB24: Fort Albany Power Corporation
C25: Email Address | D25: jklassen@notlhydro.com | AB25: Fort Frances Power Corporation
AB26: Greater Sudbury Hydro Inc.
C27: Date | D27: 2018-07-13 | AB27: Grimsby Power Inc.
AB28: Guelph Hydro Electric Systems Inc.
C29: Last COS Re-based Year | D29: 2014 | AB29: Halton Hills Hydro Inc.
AB30: Hearst Power Distribution Company Limited
AB31: Hydro 2000 Inc.
AB32: Hydro Hawkesbury Inc.
AB33: Hydro One Networks Inc.
AB34: Hydro One Networks Inc. - Haldimand County Hydro
AB35: Hydro One Networks Inc. - Norfolk Hydro
AB36: Hydro One Networks Inc. - Woodstock Hydro
AB37: Hydro One Remote Communities Inc.
AB38: Hydro Ottawa Limited
AB39: Innpower Corporation
AB40: Kashechewan Power Corporation
AB41: Kenora Hydro Electric Corporation Ltd.
AB42: Kingston Hydro Corporation
AB43: Kitchener-Wilmot Hydro Inc.
AB44: Lakefront Utilities Inc.
AB45: Lakeland Power Distribution Ltd.
AB46: London Hydro Inc.
AB47: Midland Power Utility Corporation
AB48: Milton Hydro Distribution inc.
AB49: Newmarket - Tay Power Distribution Ltd.
AB50: Niagara Peninsula Energy Inc.
AB51: Niagara-on-the-Lake Hydro Inc.
AB52: North Bay Hydro Distribution Limited
AB53: Northern Ontario Wires Inc.
AB54: Oakville Hydro Electricity Distribution Inc.
AB55: Orangeville Hydro Limited
AB56: Orillia Power Distribution Corporation
AB57: Oshawa PUC Networks Inc.
AB58: Ottawa River Power Corporation
AB59: Peterborough Distribution Incorporated
AB60: PUC Distribution Inc.
AB61: Renfrew Hydro Inc.
AB62: Rideau St. Lawrence Distribution Inc.
AB63: Sioux Lookout Hydro Inc.
AB64: St. Thomas Energy Inc.
AB65: Thunder Bay Hydro Electricity Distribution Inc.
AB66: Tillsonburg Hydro Inc.
AB67: Toronto Hydro-Electric System Limited
AB68: Veridian Connections Inc.
AB69: Wasaga Distribution Inc.
AB70: Waterloo North Hydro Inc.
AB71: Welland Hydro Electric System Corp.
AB72: Wellington North Power Inc.
AB73: West Coast Huron Energy Inc.
AB74: Westario Power Inc.
AB75: Whitby Hydro Electric Corporation

Sheet 2. Table of Contents
D20: 1. Info | I20: 6. Historical Wholesale
D22: 2. Table of Contents | I22: 7. Current Wholesale
D24: 3. Rate Classes | I24: 8. Forecast Wholesale
D26: 4. RRR Data | I26: 9. RTSR Rates to Forecast
D28: 5. UTRs and Sub-Transmission

Sheet 3. Rate Classes
C13: 1. Select the appropriate rate classes that appear on your most recent Board-Approved Tariff of Rates and Charges. 2. Enter the RTS Network and Connection Rate as it appears on the Tariff of Rates and Charges
C15: Rate Class | E15: Unit | G15: RTSR-Network | I15: RTSR-Connection
C17: Residential | E17: kWh | G17: 0.0071 | I17: 0.0017 | L17: =IF(OR(ISBLANK(C17), ISERROR(FIND("Choose", C17))=FALSE), 0, 1) -> 1 | M17: ="C" & ROW(C17) -> C17 | N17: =IF(OR(C17="General Service Intermediate Rate Class 1,000 To 4,999 kW (formerly General Service > 50 kW Customers)", C17="General Service Intermediate Rate Class 1,000 To 4,999 kW (formerly Large Use Customers)"), "x", "") ->  | W17: Choose Rate Class
C18: General Service Less Than 50 kW | E18: kWh | G18: 0.0065 | I18: 0.0017 | L18: 1 | M18: C18 | N18: =IF(OR(C18="General Service Intermediate Rate Class 1,000 To 4,999 kW (formerly General Service > 50 kW Customers)", C18="General Service Intermediate Rate Class 1,000 To 4,999 kW (formerly Large Use Customers)"), "x", "") ->  | W18: Residential
C19: General Service 50 to 4,999 kW | E19: kW | G19: 2.641 | I19: 0.5641 | L19: 1 | M19: C19 | W19: Residential Regular
C20: General Service 50 to 4,999 kW – Interval Metered | E20: kW | G20: 2.8543 | I20: 1.3567 | L20: 1 | M20: C20 | W20: Residential Urban
C21: Unmetered Scattered Load | E21: kWh | G21: 0.0065 | I21: 0.0017 | L21: 1 | M21: C21 | W21: Residential Urban Year-Round
C22: Street Lighting | E22: kW | G22: 1.9914 | I22: 0.4361 | L22: 1 | M22: C22 | W22: Residential Suburban
C23: Choose Rate Class | L23: 0 | M23: C23 | W23: Residential Suburban Seasonal
C24: Choose Rate Class | L24: 0 | M24: C24 | W24: Residential Suburban Year Round
C25: Choose Rate Class | L25: 0 | M25: C25 | W25: Residential - Time of Use
C26: Choose Rate Class | L26: 0 | M26: C26 | W26: Residential - Hensall
C27: Choose Rate Class | L27: 0 | M27: C27 | W27: Residential – High Density [R1]
C28: Choose Rate Class | L28: 0 | M28: C28 | W28: Residential – Normal Density [R2]
C29: Choose Rate Class | L29: 0 | M29: C29 | W29: Seasonal Residential – High Density [R3]
C30: Choose Rate Class | L30: 0 | M30: C30 | W30: Seasonal Residential – Normal Density [R4]
C31: Choose Rate Class | L31: 0 | M31: C31 | W31: Residential – Urban [UR]
C32: Choose Rate Class | L32: 0 | M32: C32 | W32: General Service Less Than 50 kW
C33: Choose Rate Class | L33: 0 | M33: C33 | W33: General Service Less Than 50 kW – Single Phase energy-billed [G1]
C34: Choose Rate Class | L34: 0 | M34: C34 | W34: General Service Less Than 50 kW – Three Phase energy-billed [G3]
C35: Choose Rate Class | L35: 0 | M35: C35 | W35: General Service Less Than 50 kW – Transmission Class energy-billed [T]
C36: Choose Rate Class | L36: 0 | M36: C36 | W36: General Service Less Than 50 kW – Urban energy-billed [UG]
C37: Choose Rate Class | L37: 0 | M37: C37 | W37: Westport Sewage Treatment Plant
C38: Choose Rate Class | L38: 0 | M38: C38 | W38: Small Commercial and USL - per meter
N39: =COUNTIF(N17:N38, "x") -> 0 | W39: Small Commercial and USL - per connection
W40: Farms – Single Phase energy-billed [F1]
W41: General Service 50 to 499 kW
W42: General Service 50 to 699 kW
W43: General Service 50 to 999 kW
W44: General Service 50 to 999 kW - Interval Metered
W45: General Service 50 to 1,000 kW
W46: General Service 50 to 1,000 kW - Interval Meters
W47: General Service 50 to 1,000 kW - Non Interval Meters
W48: General Service 50 to 1,499 kW
W49: General Service 50 to 1,499 kW - Interval Metered
W50: General Service 50 to 2,499 kW
W51: General Service 50 to 2,999 kW
W52: General Service 50 to 2,999 kW - Time of Use
W53: General Service 50 to 4,999 kW
W54: General Service 50 to 4,999 kW – Interval Metered
W55: General Service 50 to 4,999 kW - Time of Use
W56: General Service 50 to 4,999 kW (CoGeneration)
W57: General Service 50 to 4,999 kW (formerly Time of Use)
W58: General Service 500 to 4,999 kW
W59: General Service 700 to 4,999 kW
W60: General Service 1,000 to 2,999 kW
W61: General Service 1,000 to 4,999 kW
W62: General Service 1,000 to 4,999 kW - Interval Meters
W63: General Service 1,000 To 4,999 kW (co-generation)
W64: General Service Greater Than 1,000 kW
W65: General Service Intermediate Rate Class 1,000 To 4,999 kW (formerly Large Use Customers)
W66: General Service Intermediate Rate Class 1,000 To 4,999 kW (formerly General Service > 50 kW Customers)
W67: General Service 1,500 to 4,999 kW
W68: General Service Equal To Or Greater Than 1,500 kW
W69: General Service Equal To Or Greater Than 1,500 kW - Interval Metered
W70: General Service Intermediate 1,000 To 4,999 kW
W71: General Service 2,500 to 4,999 kW
W72: General Service 3,000 to 4,999 kW
W73: General Service 3,000 to 4,999 kW - Interval Metered
W74: General Service 3,000 to 4,999 kW - Intermediate Use
W75: General Service 3,000 to 4,999 kW - Time of Use
W76: Intermediate With Self Generation
W77: General Service - Commercial
W78: General Service - Institutional
W79: Farms – Three Phase energy-billed [F3]
W80: Large Use
W81: Large Use - Regular
W82: Large Use > 5000 kW
W83: Large Use - 3TS
W84: Large Use - Ford Annex
W85: Unmetered Scattered Load
W86: Sentinel Lighting
W87: Street Lighting
W88: Embedded Distributor
W89: Low Voltage Wheeling Charge Rate
W90: Stand-By
W91: Standby Power
W92: Standby Power – INTERIM APPROVAL
W93: Standby Power - APPROVED ON AN INTERIM BASIS
W94: Standby - General Service 50 - 1,000 kW
W95: Standby Power General Service 50 to 1,499 kW
W96: Standby - General Service 1,000 - 5,000 kW
W97: Standby Power General Service 1,500 to 4,999 kW
W98: Standby - Large Use
W99: Standby Power General Service Large Use
W100: Standby Distribution Service

Sheet 4. RRR Data
B15: Rate Class | C15: Rate Description | D15: Unit | E15: Rate | F15: Non-Loss Adjusted Metered kWh | G15: Non-Loss Adjusted Metered kW | H15: Applicable Loss Factor eg: (1.0325) | I15: Loss Adjusted Billed kWh
B17: Residential | C17: RTSR - Network | D17: kWh | E17: 0.0071 | F17: 71017298.6 | H17: 1.0379 | I17: =F17*H17 -> 73708854.22
B18: Residential | C18: RTSR - Connection | D18: kWh | E18: 0.0017 | F18: 71017298.6 | H18: 1.0379 | I18: =F18*H18 -> 73708854.22
B19: General Service Less Than 50 kW | C19: RTSR - Network | D19: kWh | E19: 0.0065 | F19: 40733064.1 | H19: 1.0379 | I19: =F19*H19 -> 42276847.23
B20: General Service Less Than 50 kW | C20: RTSR - Connection | D20: kWh | E20: 0.0017 | F20: 40733064.1 | H20: 1.0379 | I20: =F20*H20 -> 42276847.23
B21: General Service 50 to 4,999 kW | C21: RTSR - Network | D21: kW | E21: 2.641 | F21: 46719754.04 | G21: 122962.26
B22: General Service 50 to 4,999 kW | C22: RTSR - Connection | D22: kW | E22: 0.5641 | F22: 46719754.04 | G22: 114823.285
B23: General Service 50 to 4,999 kW – Interval Metered | C23: RTSR - Network | D23: kW | E23: 2.8543 | F23: 37379542.96 | G23: 89639.54
B24: General Service 50 to 4,999 kW – Interval Metered | C24: RTSR - Connection | D24: kW | E24: 1.3567 | F24: 37379542.96 | G24: 97778.515
B25: Unmetered Scattered Load | C25: RTSR - Network | D25: kWh | E25: 0.0065 | F25: 250759.4 | H25: 1.0379 | I25: =F25*H25 -> 260263.1813
B26: Unmetered Scattered Load | C26: RTSR - Connection | D26: kWh | E26: 0.0017 | F26: 250759.4 | H26: 1.0379 | I26: =F26*H26 -> 260263.1813
B27: Street Lighting | C27: RTSR - Network | D27: kW | E27: 1.9914 | F27: 858843.6 | G27: 2400.4
B28: Street Lighting | C28: RTSR - Connection | D28: kW | E28: 0.4361 | F28: 858843.6 | G28: 2400.4

Sheet 5. UTRs and Sub-Transmission
B18: Uniform Transmission Rates | C18: Unit | E18: 2017 | H18: 2018 | J18: 2019
B20: Rate Description | E20: Rate | H20: Rate | J20: Rate
B22: Network Service Rate | C22: kW | E22: 3.66 | H22: 3.61 | J22: =+H22 -> 3.61
B24: Line Connection Service Rate | C24: kW | E24: 0.87 | H24: 0.95 | J24: =+H24 -> 0.95
B26: Transformation Connection Service Rate | C26: kW | E26: 2.02 | H26: 2.34 | J26: =+H26 -> 2.34
B29: Hydro One Sub-Transmission Rates | C29: Unit | E29: 2017 | H29: 2018 | J29: 2019
B34: Rate Description | E34: Rate | H34: Rate | J34: Rate
B36: Network Service Rate | C36: kW | E36: 3.1942 | H36: 3.1942
B38: Line Connection Service Rate | C38: kW | E38: 0.771 | H38: 0.771
E39: 1.7493
B40: Transformation Connection Service Rate | C40: kW | H40: 1.7493
B42: Both Line and Transformation Connection Service Rate | C42: kW | E42: =E39+E38 -> 2.5203 | H42: =SUM(H40,H38) -> 2.5203 | J42: =SUM(J40,J38) -> 0
B45: If needed, add extra host here. (I) | C45: Unit | E45: 2017 | H45: 2018 | J45: 2019
B49: Rate Description | E49: Rate | H49: Rate | J49: Rate
B51: Network Service Rate | C51: kW
B53: Line Connection Service Rate | C53: kW
B55: Transformation Connection Service Rate | C55: kW
B57: Both Line and Transformation Connection Service Rate | C57: kW | E57: =SUM(E53,E55) -> 0 | H57: =SUM(H53,H55) -> 0 | J57: =J55+J53 -> 0
B60: If needed, add extra host here. (II) | C60: Unit | E60: Effective January 1, 2017 | H60: Effective January 1, 2018 | J60: Effective January 1, 2019
B64: Rate Description | E64: Rate | H64: Rate | J64: Rate
B66: Network Service Rate | C66: kW
B68: Line Connection Service Rate | C68: kW
B70: Transformation Connection Service Rate | C70: kW
B72: Both Line and Transformation Connection Service Rate | C72: kW | E72: =SUM(E68,E70) -> 0 | H72: =SUM(H68,H70) -> 0 | J72: =J70+J68 -> 0
E74: Historical 2017 | H74: Current 2018 | J74: Forecast 2019
B75: Low Voltage Switchgear Credit (if applicable, enter as a negative value) | C75: $

Sheet 6. Historical Wholesale
B21: IESO | D21: Network | H21: Line Connection | L21: Transformation Connection | P21: Total Line
B22: Month | D22: Units Billed | E22: Rate | F22: Amount | H22: Units Billed | I22: Rate | J22: Amount | L22: Units Billed | M22: Rate | N22: Amount | P22: Amount
B24: January | D24: =16769+12852 -> 29621 | E24: =+F24/D24 -> 3.66 | F24: 108412.86 | H24: =17614+12852 -> 30466 | I24: =+J24/H24 -> 0.87 | J24: 26505.42 | P24: =J24+N24 -> 26505.42
B25: February | D25: =16082+12349 -> 28431 | E25: =+F25/D25 -> 3.66 | F25: 104057.46 | H25: =16585+12479 -> 29064 | I25: =+J25/H25 -> 0.87 | J25: 25285.68 | P25: 25285.68
B26: March | D26: =15543+10184 -> 25727 | E26: =+F26/D26 -> 3.66 | F26: 94160.82 | H26: =16381+11969 -> 28350 | I26: =+J26/H26 -> 0.87 | J26: 24664.5 | P26: 24664.5
B27: April | D27: =14072+9410 -> 23482 | E27: 3.66 | F27: 85944.12 | H27: =14869+10839 -> 25708 | I27: 1.380188268 | J27: 35481.88 | P27: 35481.88
B28: May | D28: =17686+11198 -> 28884 | E28: 3.66 | F28: 105715.44 | H28: =17686+11647 -> 29333 | I28: 0.87 | J28: 25519.71 | P28: 25519.71
B29: June | D29: =20848+12952 -> 33800 | E29: 3.66 | F29: 123708 | H29: =23205+14364 -> 37569 | I29: 0.87 | J29: 32685.03 | P29: 32685.03
B30: July | D30: =23781+14371 -> 38152 | E30: 3.66 | F30: 139636.32 | H30: =23930+15269 -> 39199 | I30: 0.87 | J30: 34103.13 | P30: 34103.13
B31: August | D31: =23824+15334 -> 39158 | E31: 3.66 | F31: 143318.28 | H31: =23985+15429 -> 39414 | I31: 0.87 | J31: 34290.18 | P31: 34290.18
B32: September | D32: =22201+15180 -> 37381 | E32: 3.66 | F32: 136814.46 | H32: =23501+16409 -> 39910 | I32: 0.87 | J32: 34721.7 | P32: 34721.7
B33: October | D33: =15985+10673 -> 26658 | E33: 3.66 | F33: 97568.28 | H33: =16785+11234 -> 28019 | I33: 0.87 | J33: 24376.53 | P33: 24376.53
B34: November | D34: =15426+10229 -> 25655 | E34: 1.821260573 | F34: 46724.44 | H34: =16315+11459 -> 27774 | I34: 0.9977475337 | J34: 27711.44 | P34: 27711.44
B35: December | D35: =17521+13431 -> 30952 | E35: 4.928024037 | F35: 152532.2 | H35: =19084+13433 -> 32517 | I35: 0.7794273764 | J35: 25344.64 | P35: 25344.64
B37: Total | D37: =SUM(D24:D35) -> 367901 | E37: =IF(D37<>0,F37/D37,0) -> 3.638458933 | F37: =SUM(F24:F35) -> 1338592.68 | H37: =SUM(H24:H35) -> 387323 | I37: =IF(H37<>0,J37/H37,0) -> 0.905419611 | J37: =SUM(J24:J35) -> 350689.84 | L37: =SUM(L24:L35) -> 0 | M37: =IF(L37<>0,N37/L37,0) -> 0 | N37: =SUM(N24:N35) -> 0 | P37: =SUM(P24:P35) -> 350689.84
B39: Hydro One | D39: Network | H39: Line Connection | L39: Transformation Connection | P39: Total Line
B41: Month | D41: Units Billed | E41: Rate | F41: Amount | H41: Units Billed | I41: Rate | J41: Amount | L41: Units Billed | M41: Rate | N41: Amount | P41: Amount
B43: January | E43: =IF(D43<>0,F43/D43,0) -> 0 | I43: =IF(H43<>0,J43/H43,0) -> 0 | M43: =IF(L43<>0,N43/L43,0) -> 0 | P43: =J43+N43 -> 0
B44: February | E44: =IF(D44<>0,F44/D44,0) -> 0 | I44: =IF(H44<>0,J44/H44,0) -> 0 | M44: =IF(L44<>0,N44/L44,0) -> 0 | P44: 0
B45: March | E45: 0 | I45: 0 | M45: 0 | P45: 0
B46: April | E46: 0 | I46: 0 | M46: 0 | P46: 0
B47: May | E47: 0 | I47: 0 | M47: 0 | P47: 0
B48: June | E48: 0 | I48: 0 | M48: 0 | P48: 0
B49: July | E49: 0 | I49: 0 | M49: 0 | P49: 0
B50: August | E50: 0 | I50: 0 | M50: 0 | P50: 0
B51: September | E51: 0 | I51: 0 | M51: 0 | P51: 0
B52: October | E52: 0 | I52: 0 | M52: 0 | P52: 0
B53: November | E53: 0 | I53: 0 | M53: 0 | P53: 0
B54: December | E54: 0 | I54: 0 | M54: 0 | P54: 0
B56: Total | D56: =SUM(D43:D54) -> 0 | E56: =IF(D56<>0,F56/D56,0) -> 0 | F56: =SUM(F43:F54) -> 0 | H56: =SUM(H43:H54) -> 0 | I56: =IF(H56<>0,J56/H56,0) -> 0 | J56: =SUM(J43:J54) -> 0 | L56: =SUM(L43:L54) -> 0 | M56: =IF(L56<>0,N56/L56,0) -> 0 | N56: =SUM(N43:N54) -> 0 | P56: =SUM(P43:P54) -> 0
B58: Add Extra Host Here (I) | D58: Network | H58: Line Connection | L58: Transformation Connection | P58: Total Line
B59: (if needed)
B60: Month | D60: Units Billed | E60: Rate | F60: Amount | H60: Units Billed | I60: Rate | J60: Amount | L60: Units Billed | M60: Rate | N60: Amount | P60: Amount
B62: January | E62: =IF(D62<>0,F62/D62,0) -> 0 | I62: =IF(H62<>0,J62/H62,0) -> 0 | M62: =IF(L62<>0,N62/L62,0) -> 0 | P62: =J62+N62 -> 0
B63: February | E63: 0 | I63: 0 | M63: 0 | P63: 0
B64: March | E64: 0 | I64: 0 | M64: 0 | P64: 0
B65: April | E65: 0 | I65: 0 | M65: 0 | P65: 0
B66: May | E66: 0 | I66: 0 | M66: 0 | P66: 0
B67: June | E67: 0 | I67: 0 | M67: 0 | P67: 0
B68: July | E68: 0 | I68: 0 | M68: 0 | P68: 0
B69: August | E69: 0 | I69: 0 | M69: 0 | P69: 0
B70: September | E70: 0 | I70: 0 | M70: 0 | P70: 0
B71: October | E71: 0 | I71: 0 | M71: 0 | P71: 0
B72: November | E72: 0 | I72: 0 | M72: 0 | P72: 0
B73: December | E73: 0 | I73: 0 | M73: 0 | P73: 0
B75: Total | D75: =SUM(D62:D73) -> 0 | E75: =IF(D75<>0,F75/D75,0) -> 0 | F75: =SUM(F62:F73) -> 0 | H75: =SUM(H62:H73) -> 0 | I75: =IF(H75<>0,J75/H75,0) -> 0 | J75: =SUM(J62:J73) -> 0 | L75: =SUM(L62:L73) -> 0 | M75: =IF(L75<>0,N75/L75,0) -> 0 | N75: =SUM(N62:N73) -> 0 | P75: =SUM(P62:P73) -> 0
B77: Add Extra Host Here (II) | D77: Network | H77: Line Connection | L77: Transformation Connection | P77: Total Line
B78: (if needed)
B79: Month | D79: Units Billed | E79: Rate | F79: Amount | H79: Units Billed | I79: Rate | J79: Amount | L79: Units Billed | M79: Rate | N79: Amount | P79: Amount
B81: January | E81: =IF(D81<>0,F81/D81,0) -> 0 | I81: =IF(H81<>0,J81/H81,0) -> 0 | M81: =IF(L81<>0,N81/L81,0) -> 0 | P81: =J81+N81 -> 0
B82: February | E82: 0 | I82: 0 | M82: 0 | P82: 0
B83: March | E83: 0 | I83: 0 | M83: 0 | P83: 0
B84: April | E84: 0 | I84: 0 | M84: 0 | P84: 0
B85: May | E85: 0 | I85: 0 | M85: 0 | P85: 0
B86: June | E86: 0 | I86: 0 | M86: 0 | P86: 0
B87: July | E87: 0 | I87: 0 | M87: 0 | P87: 0
B88: August | E88: 0 | I88: 0 | M88: 0 | P88: 0
B89: September | E89: 0 | I89: 0 | M89: 0 | P89: 0
B90: October | E90: 0 | I90: 0 | M90: 0 | P90: 0
B91: November | E91: 0 | I91: 0 | M91: 0 | P91: 0
B92: December | E92: 0 | I92: 0 | M92: 0 | P92: 0
B94: Total | D94: =SUM(D81:D92) -> 0 | E94: =IF(D94<>0,F94/D94,0) -> 0 | F94: =SUM(F81:F92) -> 0 | H94: =SUM(H81:H92) -> 0 | I94: =IF(H94<>0,J94/H94,0) -> 0 | J94: =SUM(J81:J92) -> 0 | L94: =SUM(L81:L92) -> 0 | M94: =IF(L94<>0,N94/L94,0) -> 0 | N94: =SUM(N81:N92) -> 0 | P94: =SUM(P81:P92) -> 0
B96: Total | D96: Network | H96: Line Connection | L96: Transformation Connection | P96: Total Line
B98: Month | D98: Units Billed | E98: Rate | F98: Amount | H98: Units Billed | I98: Rate | J98: Amount | L98: Units Billed | M98: Rate | N98: Amount | P98: Amount
B100: January | D100: =D24+D43+D62+D81 -> 29621 | E100: =IF(D100<>0,F100/D100,0) -> 3.66 | F100: =F24+F43+F62+F81 -> 108412.86 | H100: =H24+H43+H62+H81 -> 30466 | I100: =IF(H100<>0,J100/H100,0) -> 0.87 | J100: =J24+J43+J62+J81 -> 26505.42 | L100: =L24+L43+L62+L81 -> 0 | M100: =IF(L100<>0,N100/L100,0) -> 0 | N100: =N24+N43+N62+N81 -> 0 | P100: =J100+N100 -> 26505.42
B101: February | D101: =D25+D44+D63+D82 -> 28431 | E101: 3.66 | F101: =F25+F44+F63+F82 -> 104057.46 | H101: =H25+H44+H63+H82 -> 29064 | I101: 0.87 | J101: =J25+J44+J63+J82 -> 25285.68 | L101: =L25+L44+L63+L82 -> 0 | M101: 0 | N101: =N25+N44+N63+N82 -> 0 | P101: 25285.68
B102: March | D102: 25727 | E102: 3.66 | F102: 94160.82 | H102: 28350 | I102: 0.87 | J102: 24664.5 | L102: 0 | M102: 0 | N102: 0 | P102: 24664.5
B103: April | D103: 23482 | E103: 3.66 | F103: 85944.12 | H103: 25708 | I103: 1.380188268 | J103: 35481.88 | L103: 0 | M103: 0 | N103: 0 | P103: 35481.88
B104: May | D104: 28884 | E104: 3.66 | F104: 105715.44 | H104: 29333 | I104: 0.87 | J104: 25519.71 | L104: 0 | M104: 0 | N104: 0 | P104: 25519.71
B105: June | D105: 33800 | E105: 3.66 | F105: 123708 | H105: 37569 | I105: 0.87 | J105: 32685.03 | L105: 0 | M105: 0 | N105: 0 | P105: 32685.03
B106: July | D106: 38152 | E106: 3.66 | F106: 139636.32 | H106: 39199 | I106: 0.87 | J106: 34103.13 | L106: 0 | M106: 0 | N106: 0 | P106: 34103.13
B107: August | D107: 39158 | E107: 3.66 | F107: 143318.28 | H107: 39414 | I107: 0.87 | J107: 34290.18 | L107: 0 | M107: 0 | N107: 0 | P107: 34290.18
B108: September | D108: 37381 | E108: 3.66 | F108: 136814.46 | H108: 39910 | I108: 0.87 | J108: 34721.7 | L108: 0 | M108: 0 | N108: 0 | P108: 34721.7
B109: October | D109: 26658 | E109: 3.66 | F109: 97568.28 | H109: 28019 | I109: 0.87 | J109: 24376.53 | L109: 0 | M109: 0 | N109: 0 | P109: 24376.53
B110: November | D110: 25655 | E110: 1.821260573 | F110: 46724.44 | H110: 27774 | I110: 0.9977475337 | J110: 27711.44 | L110: 0 | M110: 0 | N110: 0 | P110: 27711.44
B111: December | D111: 30952 | E111: 4.928024037 | F111: 152532.2 | H111: 32517 | I111: 0.7794273764 | J111: 25344.64 | L111: 0 | M111: 0 | N111: 0 | P111: 25344.64
B113: Total | D113: =SUM(D100:D111) -> 367901 | E113: =IF(D113<>0,F113/D113,0) -> 3.638458933 | F113: =SUM(F100:F111) -> 1338592.68 | H113: =SUM(H100:H111) -> 387323 | I113: =IF(H113<>0,J113/H113,0) -> 0.905419611 | J113: =SUM(J100:J111) -> 350689.84 | L113: =SUM(L100:L111) -> 0 | M113: =IF(L113<>0,N113/L113,0) -> 0 | N113: =SUM(N100:N111) -> 0 | P113: =SUM(P100:P111) -> 350689.84
N115: Low Voltage Switchgear Credit (if applicable) | P115: ='5. UTRs and Sub-Transmission'!E75 -> 0
N117: Total including deduction for Low Voltage Switchgear Credit | P117: =P113+P115 -> 350689.84

Sheet 7. Current Wholesale
B13: The purpose of this sheet is to calculate the expected billing when current 2018 Uniform Transmission Rates are applied against historical 2017 transmission units.
B20: IESO | D20: Network | H20: Line Connection | L20: Transformation Connection | P20: Total Line
B22: Month | D22: Units Billed | E22: Rate | F22: Amount | H22: Units Billed | I22: Rate | J22: Amount | L22: Units Billed | M22: Rate | N22: Amount | P22: Amount
B24: January | D24: ='6. Historical Wholesale'!D24 -> 29621 | E24: ='5. UTRs and Sub-Transmission'!H22 -> 3.61 | F24: =D24*E24 -> 106931.81 | H24: ='6. Historical Wholesale'!H24 -> 30466 | I24: ='5. UTRs and Sub-Transmission'!H24 -> 0.95 | J24: =H24*I24 -> 28942.7 | L24: ='6. Historical Wholesale'!L24 -> 0 | M24: ='5. UTRs and Sub-Transmission'!H26 -> 2.34 | N24: =L24*M24 -> 0 | P24: =J24+N24 -> 28942.7
B25: February | D25: ='6. Historical Wholesale'!D25 -> 28431 | E25: =E24 -> 3.61 | F25: =D25*E25 -> 102635.91 | H25: ='6. Historical Wholesale'!H25 -> 29064 | I25: =I24 -> 0.95 | J25: =H25*I25 -> 27610.8 | L25: ='6. Historical Wholesale'!L25 -> 0 | M25: =M24 -> 2.34 | N25: =L25*M25 -> 0 | P25: 27610.8
B26: March | D26: ='6. Historical Wholesale'!D26 -> 25727 | E26: =E25 -> 3.61 | F26: 92874.47 | H26: ='6. Historical Wholesale'!H26 -> 28350 | I26: =I25 -> 0.95 | J26: 26932.5 | L26: ='6. Historical Wholesale'!L26 -> 0 | M26: =M25 -> 2.34 | N26: 0 | P26: 26932.5
B27: April | D27: ='6. Historical Wholesale'!D27 -> 23482 | E27: 3.61 | F27: 84770.02 | H27: ='6. Historical Wholesale'!H27 -> 25708 | I27: 0.95 | J27: 24422.6 | L27: ='6. Historical Wholesale'!L27 -> 0 | M27: 2.34 | N27: 0 | P27: 24422.6
B28: May | D28: ='6. Historical Wholesale'!D28 -> 28884 | E28: 3.61 | F28: 104271.24 | H28: ='6. Historical Wholesale'!H28 -> 29333 | I28: 0.95 | J28: 27866.35 | L28: ='6. Historical Wholesale'!L28 -> 0 | M28: 2.34 | N28: 0 | P28: 27866.35
B29: June | D29: ='6. Historical Wholesale'!D29 -> 33800 | E29: 3.61 | F29: 122018 | H29: ='6. Historical Wholesale'!H29 -> 37569 | I29: 0.95 | J29: 35690.55 | L29: ='6. Historical Wholesale'!L29 -> 0 | M29: 2.34 | N29: 0 | P29: 35690.55
B30: July | D30: ='6. Historical Wholesale'!D30 -> 38152 | E30: 3.61 | F30: 137728.72 | H30: ='6. Historical Wholesale'!H30 -> 39199 | I30: 0.95 | J30: 37239.05 | L30: ='6. Historical Wholesale'!L30 -> 0 | M30: 2.34 | N30: 0 | P30: 37239.05
B31: August | D31: ='6. Historical Wholesale'!D31 -> 39158 | E31: 3.61 | F31: 141360.38 | H31: ='6. Historical Wholesale'!H31 -> 39414 | I31: 0.95 | J31: 37443.3 | L31: ='6. Historical Wholesale'!L31 -> 0 | M31: 2.34 | N31: 0 | P31: 37443.3
B32: September | D32: ='6. Historical Wholesale'!D32 -> 37381 | E32: 3.61 | F32: 134945.41 | H32: ='6. Historical Wholesale'!H32 -> 39910 | I32: 0.95 | J32: 37914.5 | L32: ='6. Historical Wholesale'!L32 -> 0 | M32: 2.34 | N32: 0 | P32: 37914.5
B33: October | D33: ='6. Historical Wholesale'!D33 -> 26658 | E33: 3.61 | F33: 96235.38 | H33: ='6. Historical Wholesale'!H33 -> 28019 | I33: 0.95 | J33: 26618.05 | L33: ='6. Historical Wholesale'!L33 -> 0 | M33: 2.34 | N33: 0 | P33: 26618.05
B34: November | D34: ='6. Historical Wholesale'!D34 -> 25655 | E34: 3.61 | F34: 92614.55 | H34: ='6. Historical Wholesale'!H34 -> 27774 | I34: 0.95 | J34: 26385.3 | L34: ='6. Historical Wholesale'!L34 -> 0 | M34: 2.34 | N34: 0 | P34: 26385.3
B35: December | D35: ='6. Historical Wholesale'!D35 -> 30952 | E35: 3.61 | F35: 111736.72 | H35: ='6. Historical Wholesale'!H35 -> 32517 | I35: 0.95 | J35: 30891.15 | L35: ='6. Historical Wholesale'!L35 -> 0 | M35: 2.34 | N35: 0 | P35: 30891.15
B37: Total | D37: =SUM(D24:D35) -> 367901 | E37: =IF(D37<>0,F37/D37,0) -> 3.61 | F37: =SUM(F24:F35) -> 1328122.61 | H37: =SUM(H24:H35) -> 387323 | I37: =IF(H37<>0,J37/H37,0) -> 0.95 | J37: =SUM(J24:J35) -> 367956.85 | L37: =SUM(L24:L35) -> 0 | M37: =IF(L37<>0,N37/L37,0) -> 0 | N37: =SUM(N24:N35) -> 0 | P37: =SUM(P24:P35) -> 367956.85
B39: Hydro One | D39: Network | H39: Line Connection | L39: Transformation Connection | P39: Total Line
B41: Month | D41: Units Billed | E41: Rate | F41: Amount | H41: Units Billed | I41: Rate | J41: Amount | L41: Units Billed | M41: Rate | N41: Amount | P41: Amount
B43: January | D43: ='6. Historical Wholesale'!D43 -> 0 | E43: ='5. UTRs and Sub-Transmission'!H36 -> 3.1942 | F43: =D43*E43 -> 0 | H43: ='6. Historical Wholesale'!H43 -> 0 | I43: ='5. UTRs and Sub-Transmission'!H38 -> 0.771 | J43: =H43*I43 -> 0 | L43: ='6. Historical Wholesale'!L43 -> 0 | M43: ='5. UTRs and Sub-Transmission'!H40 -> 1.7493 | N43: =L43*M43 -> 0 | P43: =J43+N43 -> 0
B44: February | D44: ='6. Historical Wholesale'!D44 -> 0 | E44: =E43 -> 3.1942 | F44: =D44*E44 -> 0 | H44: ='6. Historical Wholesale'!H44 -> 0 | I44: =I43 -> 0.771 | J44: =H44*I44 -> 0 | L44: ='6. Historical Wholesale'!L44 -> 0 | M44: =M43 -> 1.7493 | N44: =L44*M44 -> 0 | P44: 0
B45: March | D45: ='6. Historical Wholesale'!D45 -> 0 | E45: 3.1942 | F45: 0 | H45: ='6. Historical Wholesale'!H45 -> 0 | I45: 0.771 | J45: 0 | L45: ='6. Historical Wholesale'!L45 -> 0 | M45: =M44 -> 1.7493 | N45: 0 | P45: 0
B46: April | D46: ='6. Historical Wholesale'!D46 -> 0 | E46: 3.1942 | F46: 0 | H46: ='6. Historical Wholesale'!H46 -> 0 | I46: 0.771 | J46: 0 | L46: ='6. Historical Wholesale'!L46 -> 0 | M46: =M45 -> 1.7493 | N46: 0 | P46: 0
B47: May | D47: ='6. Historical Wholesale'!D47 -> 0 | E47: 3.1942 | F47: 0 | H47: ='6. Historical Wholesale'!H47 -> 0 | I47: 0.771 | J47: 0 | L47: ='6. Historical Wholesale'!L47 -> 0 | M47: 1.7493 | N47: 0 | P47: 0
B48: June | D48: ='6. Historical Wholesale'!D48 -> 0 | E48: 3.1942 | F48: 0 | H48: ='6. Historical Wholesale'!H48 -> 0 | I48: 0.771 | J48: 0 | L48: ='6. Historical Wholesale'!L48 -> 0 | M48: 1.7493 | N48: 0 | P48: 0
B49: July | D49: ='6. Historical Wholesale'!D49 -> 0 | E49: 3.1942 | F49: 0 | H49: ='6. Historical Wholesale'!H49 -> 0 | I49: 0.771 | J49: 0 | L49: ='6. Historical Wholesale'!L49 -> 0 | M49: 1.7493 | N49: 0 | P49: 0
B50: August | D50: ='6. Historical Wholesale'!D50 -> 0 | E50: 3.1942 | F50: 0 | H50: ='6. Historical Wholesale'!H50 -> 0 | I50: 0.771 | J50: 0 | L50: ='6. Historical Wholesale'!L50 -> 0 | M50: 1.7493 | N50: 0 | P50: 0
B51: September | D51: ='6. Historical Wholesale'!D51 -> 0 | E51: 3.1942 | F51: 0 | H51: ='6. Historical Wholesale'!H51 -> 0 | I51: 0.771 | J51: 0 | L51: ='6. Historical Wholesale'!L51 -> 0 | M51: 1.7493 | N51: 0 | P51: 0
B52: October | D52: ='6. Historical Wholesale'!D52 -> 0 | E52: 3.1942 | F52: 0 | H52: ='6. Historical Wholesale'!H52 -> 0 | I52: 0.771 | J52: 0 | L52: ='6. Historical Wholesale'!L52 -> 0 | M52: 1.7493 | N52: 0 | P52: 0
B53: November | D53: ='6. Historical Wholesale'!D53 -> 0 | E53: 3.1942 | F53: 0 | H53: ='6. Historical Wholesale'!H53 -> 0 | I53: 0.771 | J53: 0 | L53: ='6. Historical Wholesale'!L53 -> 0 | M53: 1.7493 | N53: 0 | P53: 0
B54: December | D54: ='6. Historical Wholesale'!D54 -> 0 | E54: 3.1942 | F54: 0 | H54: ='6. Historical Wholesale'!H54 -> 0 | I54: 0.771 | J54: 0 | L54: ='6. Historical Wholesale'!L54 -> 0 | M54: 1.7493 | N54: 0 | P54: 0
B56: Total | D56: =SUM(D43:D54) -> 0 | E56: =IF(D56<>0,F56/D56,0) -> 0 | F56: =SUM(F43:F54) -> 0 | H56: =SUM(H43:H54) -> 0 | I56: =IF(H56<>0,J56/H56,0) -> 0 | J56: =SUM(J43:J54) -> 0 | L56: =SUM(L43:L54) -> 0 | M56: =IF(L56<>0,N56/L56,0) -> 0 | N56: =SUM(N43:N54) -> 0 | P56: =SUM(P43:P54) -> 0
B58: ='6. Historical Wholesale'!B58 -> Add Extra Host Here (I) | D58: Network | H58: Line Connection | L58: Transformation Connection | P58: Total Line
B60: Month | D60: Units Billed | E60: Rate | F60: Amount | H60: Units Billed | I60: Rate | J60: Amount | L60: Units Billed | M60: Rate | N60: Amount | P60: Amount
B62: January | D62: ='6. Historical Wholesale'!D62 -> 0 | E62: ='5. UTRs and Sub-Transmission'!H51 -> 0 | F62: =D62*E62 -> 0 | H62: ='6. Historical Wholesale'!H62 -> 0 | I62: ='5. UTRs and Sub-Transmission'!H53 -> 0 | J62: =H62*I62 -> 0 | L62: ='6. Historical Wholesale'!L62 -> 0 | M62: ='5. UTRs and Sub-Transmission'!H55 -> 0 | N62: =L62*M62 -> 0 | P62: =J62+N62 -> 0
B63: February | D63: ='6. Historical Wholesale'!D63 -> 0 | E63: =E62 -> 0 | F63: =D63*E63 -> 0 | H63: ='6. Historical Wholesale'!H63 -> 0 | I63: =I62 -> 0 | J63: =H63*I63 -> 0 | L63: ='6. Historical Wholesale'!L63 -> 0 | M63: =M62 -> 0 | N63: =L63*M63 -> 0 | P63: 0
B64: March | D64: ='6. Historical Wholesale'!D64 -> 0 | E64: =E63 -> 0 | F64: 0 | H64: ='6. Historical Wholesale'!H64 -> 0 | I64: =I63 -> 0 | J64: 0 | L64: ='6. Historical Wholesale'!L64 -> 0 | M64: =M63 -> 0 | N64: 0 | P64: 0
B65: April | D65: ='6. Historical Wholesale'!D65 -> 0 | E65: 0 | F65: 0 | H65: ='6. Historical Wholesale'!H65 -> 0 | I65: 0 | J65: 0 | L65: ='6. Historical Wholesale'!L65 -> 0 | M65: =M64 -> 0 | N65: 0 | P65: 0
B66: May | D66: ='6. Historical Wholesale'!D66 -> 0 | E66: 0 | F66: 0 | H66: ='6. Historical Wholesale'!H66 -> 0 | I66: 0 | J66: 0 | L66: ='6. Historical Wholesale'!L66 -> 0 | M66: 0 | N66: 0 | P66: 0
B67: June | D67: ='6. Historical Wholesale'!D67 -> 0 | E67: 0 | F67: 0 | H67: ='6. Historical Wholesale'!H67 -> 0 | I67: 0 | J67: 0 | L67: ='6. Historical Wholesale'!L67 -> 0 | M67: 0 | N67: 0 | P67: 0
B68: July | D68: ='6. Historical Wholesale'!D68 -> 0 | E68: 0 | F68: 0 | H68: ='6. Historical Wholesale'!H68 -> 0 | I68: 0 | J68: 0 | L68: ='6. Historical Wholesale'!L68 -> 0 | M68: 0 | N68: 0 | P68: 0
B69: August | D69: ='6. Historical Wholesale'!D69 -> 0 | E69: 0 | F69: 0 | H69: ='6. Historical Wholesale'!H69 -> 0 | I69: 0 | J69: 0 | L69: ='6. Historical Wholesale'!L69 -> 0 | M69: 0 | N69: 0 | P69: 0
B70: September | D70: ='6. Historical Wholesale'!D70 -> 0 | E70: 0 | F70: 0 | H70: ='6. Historical Wholesale'!H70 -> 0 | I70: 0 | J70: 0 | L70: ='6. Historical Wholesale'!L70 -> 0 | M70: 0 | N70: 0 | P70: 0
B71: October | D71: ='6. Historical Wholesale'!D71 -> 0 | E71: 0 | F71: 0 | H71: ='6. Historical Wholesale'!H71 -> 0 | I71: 0 | J71: 0 | L71: ='6. Historical Wholesale'!L71 -> 0 | M71: 0 | N71: 0 | P71: 0
B72: November | D72: ='6. Historical Wholesale'!D72 -> 0 | E72: 0 | F72: 0 | H72: ='6. Historical Wholesale'!H72 -> 0 | I72: 0 | J72: 0 | L72: ='6. Historical Wholesale'!L72 -> 0 | M72: 0 | N72: 0 | P72: 0
B73: December | D73: ='6. Historical Wholesale'!D73 -> 0 | E73: 0 | F73: 0 | H73: ='6. Historical Wholesale'!H73 -> 0 | I73: 0 | J73: 0 | L73: ='6. Historical Wholesale'!L73 -> 0 | M73: 0 | N73: 0 | P73: 0
B75: Total | D75: =SUM(D62:D73) -> 0 | E75: =IF(D75<>0,F75/D75,0) -> 0 | F75: =SUM(F62:F73) -> 0 | H75: =SUM(H62:H73) -> 0 | I75: =IF(H75<>0,J75/H75,0) -> 0 | J75: =SUM(J62:J73) -> 0 | L75: =SUM(L62:L73) -> 0 | M75: =IF(L75<>0,N75/L75,0) -> 0 | N75: =SUM(N62:N73) -> 0 | P75: =SUM(P62:P73) -> 0
B77: ='6. Historical Wholesale'!B77 -> Add Extra Host Here (II) | D77: Network | H77: Line Connection | L77: Transformation Connection | P77: Total Line
B79: Month | D79: Units Billed | E79: Rate | F79: Amount | H79: Units Billed | I79: Rate | J79: Amount | L79: Units Billed | M79: Rate | N79: Amount | P79: Amount
B81: January | D81: ='6. Historical Wholesale'!D81 -> 0 | E81: ='5. UTRs and Sub-Transmission'!H66 -> 0 | F81: =D81*E81 -> 0 | H81: ='6. Historical Wholesale'!H81 -> 0 | I81: ='5. UTRs and Sub-Transmission'!H68 -> 0 | J81: =H81*I81 -> 0 | L81: ='6. Historical Wholesale'!L81 -> 0 | M81: ='5. UTRs and Sub-Transmission'!H70 -> 0 | N81: =L81*M81 -> 0 | P81: =J81+N81 -> 0
B82: February | D82: ='6. Historical Wholesale'!D82 -> 0 | E82: =E81 -> 0 | F82: =D82*E82 -> 0 | H82: ='6. Historical Wholesale'!H82 -> 0 | I82: =I81 -> 0 | J82: =H82*I82 -> 0 | L82: ='6. Historical Wholesale'!L82 -> 0 | M82: =M81 -> 0 | N82: =L82*M82 -> 0 | P82: 0
B83: March | D83: ='6. Historical Wholesale'!D83 -> 0 | E83: =E82 -> 0 | F83: 0 | H83: ='6. Historical Wholesale'!H83 -> 0 | I83: =I82 -> 0 | J83: 0 | L83: ='6. Historical Wholesale'!L83 -> 0 | M83: =M82 -> 0 | N83: 0 | P83: 0
B84: April | D84: ='6. Historical Wholesale'!D84 -> 0 | E84: 0 | F84: 0 | H84: ='6. Historical Wholesale'!H84 -> 0 | I84: 0 | J84: 0 | L84: ='6. Historical Wholesale'!L84 -> 0 | M84: =M83 -> 0 | N84: 0 | P84: 0
B85: May | D85: ='6. Historical Wholesale'!D85 -> 0 | E85: 0 | F85: 0 | H85: ='6. Historical Wholesale'!H85 -> 0 | I85: 0 | J85: 0 | L85: ='6. Historical Wholesale'!L85 -> 0 | M85: 0 | N85: 0 | P85: 0
B86: June | D86: ='6. Historical Wholesale'!D86 -> 0 | E86: 0 | F86: 0 | H86: ='6. Historical Wholesale'!H86 -> 0 | I86: 0 | J86: 0 | L86: ='6. Historical Wholesale'!L86 -> 0 | M86: 0 | N86: 0 | P86: 0
B87: July | D87: ='6. Historical Wholesale'!D87 -> 0 | E87: 0 | F87: 0 | H87: ='6. Historical Wholesale'!H87 -> 0 | I87: 0 | J87: 0 | L87: ='6. Historical Wholesale'!L87 -> 0 | M87: 0 | N87: 0 | P87: 0
B88: August | D88: ='6. Historical Wholesale'!D88 -> 0 | E88: 0 | F88: 0 | H88: ='6. Historical Wholesale'!H88 -> 0 | I88: 0 | J88: 0 | L88: ='6. Historical Wholesale'!L88 -> 0 | M88: 0 | N88: 0 | P88: 0
B89: September | D89: ='6. Historical Wholesale'!D89 -> 0 | E89: 0 | F89: 0 | H89: ='6. Historical Wholesale'!H89 -> 0 | I89: 0 | J89: 0 | L89: ='6. Historical Wholesale'!L89 -> 0 | M89: 0 | N89: 0 | P89: 0
B90: October | D90: ='6. Historical Wholesale'!D90 -> 0 | E90: 0 | F90: 0 | H90: ='6. Historical Wholesale'!H90 -> 0 | I90: 0 | J90: 0 | L90: ='6. Historical Wholesale'!L90 -> 0 | M90: 0 | N90: 0 | P90: 0
B91: November | D91: ='6. Historical Wholesale'!D91 -> 0 | E91: 0 | F91: 0 | H91: ='6. Historical Wholesale'!H91 -> 0 | I91: 0 | J91: 0 | L91: ='6. Historical Wholesale'!L91 -> 0 | M91: 0 | N91: 0 | P91: 0
B92: December | D92: ='6. Historical Wholesale'!D92 -> 0 | E92: 0 | F92: 0 | H92: ='6. Historical Wholesale'!H92 -> 0 | I92: 0 | J92: 0 | L92: ='6. Historical Wholesale'!L92 -> 0 | M92: 0 | N92: 0 | P92: 0
B94: Total | D94: =SUM(D81:D92) -> 0 | E94: =IF(D94<>0,F94/D94,0) -> 0 | F94: =SUM(F81:F92) -> 0 | H94: =SUM(H81:H92) -> 0 | I94: =IF(H94<>0,J94/H94,0) -> 0 | J94: =SUM(J81:J92) -> 0 | L94: =SUM(L81:L92) -> 0 | M94: =IF(L94<>0,N94/L94,0) -> 0 | N94: =SUM(N81:N92) -> 0 | P94: =SUM(P81:P92) -> 0
B96: Total | D96: Network | H96: Line Connection | L96: Transformation Connection | P96: Total Line
B98: Month | D98: Units Billed | E98: Rate | F98: Amount | H98: Units Billed | I98: Rate | J98: Amount | L98: Units Billed | M98: Rate | N98: Amount | P98: Amount
B100: January | D100: =D24+D43+D62+D81 -> 29621 | E100: =IF(D100<>0,F100/D100,0) -> 3.61 | F100: =F24+F43+F62+F81 -> 106931.81 | H100: =H24+H43+H62+H81 -> 30466 | I100: =IF(H100<>0,J100/H100,0) -> 0.95 | J100: =J24+J43+J62+J81 -> 28942.7 | L100: =L24+L43+L62+L81 -> 0 | M100: =IF(L100<>0,N100/L100,0) -> 0 | N100: =N24+N43+N62+N81 -> 0 | P100: =J100+N100 -> 28942.7
B101: February | D101: =D25+D44+D63+D82 -> 28431 | E101: 3.61 | F101: =F25+F44+F63+F82 -> 102635.91 | H101: =H25+H44+H63+H82 -> 29064 | I101: 0.95 | J101: =J25+J44+J63+J82 -> 27610.8 | L101: =L25+L44+L63+L82 -> 0 | M101: 0 | N101: =N25+N44+N63+N82 -> 0 | P101: 27610.8
B102: March | D102: 25727 | E102: 3.61 | F102: 92874.47 | H102: 28350 | I102: 0.95 | J102: 26932.5 | L102: 0 | M102: 0 | N102: 0 | P102: 26932.5
B103: April | D103: 23482 | E103: 3.61 | F103: 84770.02 | H103: 25708 | I103: 0.95 | J103: 24422.6 | L103: 0 | M103: 0 | N103: 0 | P103: 24422.6
B104: May | D104: 28884 | E104: 3.61 | F104: 104271.24 | H104: 29333 | I104: 0.95 | J104: 27866.35 | L104: 0 | M104: 0 | N104: 0 | P104: 27866.35
B105: June | D105: 33800 | E105: 3.61 | F105: 122018 | H105: 37569 | I105: 0.95 | J105: 35690.55 | L105: 0 | M105: 0 | N105: 0 | P105: 35690.55
B106: July | D106: 38152 | E106: 3.61 | F106: 137728.72 | H106: 39199 | I106: 0.95 | J106: 37239.05 | L106: 0 | M106: 0 | N106: 0 | P106: 37239.05
B107: August | D107: 39158 | E107: 3.61 | F107: 141360.38 | H107: 39414 | I107: 0.95 | J107: 37443.3 | L107: 0 | M107: 0 | N107: 0 | P107: 37443.3
B108: September | D108: 37381 | E108: 3.61 | F108: 134945.41 | H108: 39910 | I108: 0.95 | J108: 37914.5 | L108: 0 | M108: 0 | N108: 0 | P108: 37914.5
B109: October | D109: 26658 | E109: 3.61 | F109: 96235.38 | H109: 28019 | I109: 0.95 | J109: 26618.05 | L109: 0 | M109: 0 | N109: 0 | P109: 26618.05
B110: November | D110: 25655 | E110: 3.61 | F110: 92614.55 | H110: 27774 | I110: 0.95 | J110: 26385.3 | L110: 0 | M110: 0 | N110: 0 | P110: 26385.3
B111: December | D111: 30952 | E111: 3.61 | F111: 111736.72 | H111: 32517 | I111: 0.95 | J111: 30891.15 | L111: 0 | M111: 0 | N111: 0 | P111: 30891.15
B113: Total | D113: =SUM(D100:D111) -> 367901 | E113: =IF(D113<>0,F113/D113,0) -> 3.61 | F113: =SUM(F100:F111) -> 1328122.61 | H113: =SUM(H100:H111) -> 387323 | I113: =IF(H113<>0,J113/H113,0) -> 0.95 | J113: =SUM(J100:J111) -> 367956.85 | L113: =SUM(L100:L111) -> 0 | M113: =IF(L113<>0,N113/L113,0) -> 0 | N113: =SUM(N100:N111) -> 0 | P113: =SUM(P100:P111) -> 367956.85
N115: Low Voltage Switchgear Credit (if applicable) | P115: ='5. UTRs and Sub-Transmission'!H75 -> 0
N117: Total including deduction for Low Voltage Switchgear Credit | P117: =P113+P115 -> 367956.85

Sheet 8. Forecast Wholesale
B13: The purpose of this sheet is to calculate the expected billing when forecasted 2019 Uniform Transmission Rates are applied against historical 2017 transmission units.
B20: IESO | D20: Network | H20: Line Connection | L20: Transformation Connection | P20: Total Line
B22: Month | D22: Units Billed | E22: Rate | F22: Amount | H22: Units Billed | I22: Rate | J22: Amount | L22: Units Billed | M22: Rate | N22: Amount | P22: Amount
B24: January | D24: ='6. Historical Wholesale'!D24 -> 29621 | E24: ='5. UTRs and Sub-Transmission'!J22 -> 3.61 | F24: =D24*E24 -> 106931.81 | H24: ='6. Historical Wholesale'!H24 -> 30466 | I24: ='5. UTRs and Sub-Transmission'!J24 -> 0.95 | J24: =H24*I24 -> 28942.7 | L24: ='6. Historical Wholesale'!L24 -> 0 | M24: ='5. UTRs and Sub-Transmission'!J26 -> 2.34 | N24: =L24*M24 -> 0 | P24: =J24+N24 -> 28942.7
B25: February | D25: ='6. Historical Wholesale'!D25 -> 28431 | E25: =E24 -> 3.61 | F25: 102635.91 | H25: ='6. Historical Wholesale'!H25 -> 29064 | I25: =I24 -> 0.95 | J25: 27610.8 | L25: ='6. Historical Wholesale'!L25 -> 0 | M25: =M24 -> 2.34 | N25: 0 | P25: 27610.8
B26: March | D26: ='6. Historical Wholesale'!D26 -> 25727 | E26: 3.61 | F26: 92874.47 | H26: ='6. Historical Wholesale'!H26 -> 28350 | I26: 0.95 | J26: 26932.5 | L26: ='6. Historical Wholesale'!L26 -> 0 | M26: 2.34 | N26: 0 | P26: 26932.5
B27: April | D27: ='6. Historical Wholesale'!D27 -> 23482 | E27: 3.61 | F27: 84770.02 | H27: ='6. Historical Wholesale'!H27 -> 25708 | I27: 0.95 | J27: 24422.6 | L27: ='6. Historical Wholesale'!L27 -> 0 | M27: 2.34 | N27: 0 | P27: 24422.6
B28: May | D28: ='6. Historical Wholesale'!D28 -> 28884 | E28: 3.61 | F28: 104271.24 | H28: ='6. Historical Wholesale'!H28 -> 29333 | I28: 0.95 | J28: 27866.35 | L28: ='6. Historical Wholesale'!L28 -> 0 | M28: 2.34 | N28: 0 | P28: 27866.35
B29: June | D29: ='6. Historical Wholesale'!D29 -> 33800 | E29: 3.61 | F29: 122018 | H29: ='6. Historical Wholesale'!H29 -> 37569 | I29: 0.95 | J29: 35690.55 | L29: ='6. Historical Wholesale'!L29 -> 0 | M29: 2.34 | N29: 0 | P29: 35690.55
B30: July | D30: ='6. Historical Wholesale'!D30 -> 38152 | E30: 3.61 | F30: 137728.72 | H30: ='6. Historical Wholesale'!H30 -> 39199 | I30: 0.95 | J30: 37239.05 | L30: ='6. Historical Wholesale'!L30 -> 0 | M30: 2.34 | N30: 0 | P30: 37239.05
B31: August | D31: ='6. Historical Wholesale'!D31 -> 39158 | E31: 3.61 | F31: 141360.38 | H31: ='6. Historical Wholesale'!H31 -> 39414 | I31: 0.95 | J31: 37443.3 | L31: ='6. Historical Wholesale'!L31 -> 0 | M31: 2.34 | N31: 0 | P31: 37443.3
B32: September | D32: ='6. Historical Wholesale'!D32 -> 37381 | E32: 3.61 | F32: 134945.41 | H32: ='6. Historical Wholesale'!H32 -> 39910 | I32: 0.95 | J32: 37914.5 | L32: ='6. Historical Wholesale'!L32 -> 0 | M32: 2.34 | N32: 0 | P32: 37914.5
B33: October | D33: ='6. Historical Wholesale'!D33 -> 26658 | E33: 3.61 | F33: 96235.38 | H33: ='6. Historical Wholesale'!H33 -> 28019 | I33: 0.95 | J33: 26618.05 | L33: ='6. Historical Wholesale'!L33 -> 0 | M33: 2.34 | N33: 0 | P33: 26618.05
B34: November | D34: ='6. Historical Wholesale'!D34 -> 25655 | E34: 3.61 | F34: 92614.55 | H34: ='6. Historical Wholesale'!H34 -> 27774 | I34: 0.95 | J34: 26385.3 | L34: ='6. Historical Wholesale'!L34 -> 0 | M34: 2.34 | N34: 0 | P34: 26385.3
B35: December | D35: ='6. Historical Wholesale'!D35 -> 30952 | E35: 3.61 | F35: 111736.72 | H35: ='6. Historical Wholesale'!H35 -> 32517 | I35: 0.95 | J35: 30891.15 | L35: ='6. Historical Wholesale'!L35 -> 0 | M35: 2.34 | N35: 0 | P35: 30891.15
B37: Total | D37: =SUM(D24:D35) -> 367901 | E37: =IF(D37<>0,F37/D37,0) -> 3.61 | F37: =SUM(F24:F35) -> 1328122.61 | H37: =SUM(H24:H35) -> 387323 | I37: =IF(H37<>0,J37/H37,0) -> 0.95 | J37: =SUM(J24:J35) -> 367956.85 | L37: =SUM(L24:L35) -> 0 | M37: =IF(L37<>0,N37/L37,0) -> 0 | N37: =SUM(N24:N35) -> 0 | P37: =SUM(P24:P35) -> 367956.85
B39: Hydro One | D39: Network | H39: Line Connection | L39: Transformation Connection | P39: Total Line
B41: Month | D41: Units Billed | E41: Rate | F41: Amount | H41: Units Billed | I41: Rate | J41: Amount | L41: Units Billed | M41: Rate | N41: Amount | P41: Amount
B43: January | D43: ='6. Historical Wholesale'!D43 -> 0 | E43: ='5. UTRs and Sub-Transmission'!J36 -> 0 | F43: =D43*E43 -> 0 | H43: ='6. Historical Wholesale'!H43 -> 0 | I43: ='5. UTRs and Sub-Transmission'!J38 -> 0 | J43: =H43*I43 -> 0 | L43: ='6. Historical Wholesale'!L43 -> 0 | M43: ='5. UTRs and Sub-Transmission'!J40 -> 0 | N43: =L43*M43 -> 0 | P43: =J43+N43 -> 0
B44: February | D44: ='6. Historical Wholesale'!D44 -> 0 | E44: =E43 -> 0 | F44: 0 | H44: ='6. Historical Wholesale'!H44 -> 0 | I44: =I43 -> 0 | J44: 0 | L44: ='6. Historical Wholesale'!L44 -> 0 | M44: =M43 -> 0 | N44: 0 | P44: 0
B45: March | D45: ='6. Historical Wholesale'!D45 -> 0 | E45: 0 | F45: 0 | H45: ='6. Historical Wholesale'!H45 -> 0 | I45: 0 | J45: 0 | L45: ='6. Historical Wholesale'!L45 -> 0 | M45: 0 | N45: 0 | P45: 0
B46: April | D46: ='6. Historical Wholesale'!D46 -> 0 | E46: 0 | F46: 0 | H46: ='6. Historical Wholesale'!H46 -> 0 | I46: 0 | J46: 0 | L46: ='6. Historical Wholesale'!L46 -> 0 | M46: 0 | N46: 0 | P46: 0
B47: May | D47: ='6. Historical Wholesale'!D47 -> 0 | E47: 0 | F47: 0 | H47: ='6. Historical Wholesale'!H47 -> 0 | I47: 0 | J47: 0 | L47: ='6. Historical Wholesale'!L47 -> 0 | M47: 0 | N47: 0 | P47: 0
B48: June | D48: ='6. Historical Wholesale'!D48 -> 0 | E48: 0 | F48: 0 | H48: ='6. Historical Wholesale'!H48 -> 0 | I48: 0 | J48: 0 | L48: ='6. Historical Wholesale'!L48 -> 0 | M48: 0 | N48: 0 | P48: 0
B49: July | D49: ='6. Historical Wholesale'!D49 -> 0 | E49: 0 | F49: 0 | H49: ='6. Historical Wholesale'!H49 -> 0 | I49: 0 | J49: 0 | L49: ='6. Historical Wholesale'!L49 -> 0 | M49: 0 | N49: 0 | P49: 0
B50: August | D50: ='6. Historical Wholesale'!D50 -> 0 | E50: 0 | F50: 0 | H50: ='6. Historical Wholesale'!H50 -> 0 | I50: 0 | J50: 0 | L50: ='6. Historical Wholesale'!L50 -> 0 | M50: 0 | N50: 0 | P50: 0
B51: September | D51: ='6. Historical Wholesale'!D51 -> 0 | E51: 0 | F51: 0 | H51: ='6. Historical Wholesale'!H51 -> 0 | I51: 0 | J51: 0 | L51: ='6. Historical Wholesale'!L51 -> 0 | M51: 0 | N51: 0 | P51: 0
B52: October | D52: ='6. Historical Wholesale'!D52 -> 0 | E52: 0 | F52: 0 | H52: ='6. Historical Wholesale'!H52 -> 0 | I52: 0 | J52: 0 | L52: ='6. Historical Wholesale'!L52 -> 0 | M52: 0 | N52: 0 | P52: 0
B53: November | D53: ='6. Historical Wholesale'!D53 -> 0 | E53: 0 | F53: 0 | H53: ='6. Historical Wholesale'!H53 -> 0 | I53: 0 | J53: 0 | L53: ='6. Historical Wholesale'!L53 -> 0 | M53: 0 | N53: 0 | P53: 0
B54: December | D54: ='6. Historical Wholesale'!D54 -> 0 | E54: 0 | F54: 0 | H54: ='6. Historical Wholesale'!H54 -> 0 | I54: 0 | J54: 0 | L54: ='6. Historical Wholesale'!L54 -> 0 | M54: 0 | N54: 0 | P54: 0
B56: Total | D56: =SUM(D43:D54) -> 0 | E56: =IF(D56<>0,F56/D56,0) -> 0 | F56: =SUM(F43:F54) -> 0 | H56: =SUM(H43:H54) -> 0 | I56: =IF(H56<>0,J56/H56,0) -> 0 | J56: =SUM(J43:J54) -> 0 | L56: =SUM(L43:L54) -> 0 | M56: =IF(L56<>0,N56/L56,0) -> 0 | N56: =SUM(N43:N54) -> 0 | P56: =SUM(P43:P54) -> 0
B58: ='6. Historical Wholesale'!B58 -> Add Extra Host Here (I) | D58: Network | H58: Line Connection | L58: Transformation Connection | P58: Total Line
B60: Month | D60: Units Billed | E60: Rate | F60: Amount | H60: Units Billed | I60: Rate | J60: Amount | L60: Units Billed | M60: Rate | N60: Amount | P60: Amount
B62: January | D62: ='6. Historical Wholesale'!D62 -> 0 | E62: ='5. UTRs and Sub-Transmission'!J51 -> 0 | F62: =D62*E62 -> 0 | H62: ='6. Historical Wholesale'!H62 -> 0 | I62: ='5. UTRs and Sub-Transmission'!J53 -> 0 | J62: =H62*I62 -> 0 | L62: ='6. Historical Wholesale'!L62 -> 0 | M62: ='5. UTRs and Sub-Transmission'!J55 -> 0 | N62: =L62*M62 -> 0 | P62: =J62+N62 -> 0
B63: February | D63: ='6. Historical Wholesale'!D63 -> 0 | E63: =E62 -> 0 | F63: 0 | H63: ='6. Historical Wholesale'!H63 -> 0 | I63: =I62 -> 0 | J63: 0 | L63: ='6. Historical Wholesale'!L63 -> 0 | M63: =M62 -> 0 | N63: 0 | P63: 0
B64: March | D64: ='6. Historical Wholesale'!D64 -> 0 | E64: 0 | F64: 0 | H64: ='6. Historical Wholesale'!H64 -> 0 | I64: 0 | J64: 0 | L64: ='6. Historical Wholesale'!L64 -> 0 | M64: 0 | N64: 0 | P64: 0
B65: April | D65: ='6. Historical Wholesale'!D65 -> 0 | E65: 0 | F65: 0 | H65: ='6. Historical Wholesale'!H65 -> 0 | I65: 0 | J65: 0 | L65: ='6. Historical Wholesale'!L65 -> 0 | M65: 0 | N65: 0 | P65: 0
B66: May | D66: ='6. Historical Wholesale'!D66 -> 0 | E66: 0 | F66: 0 | H66: ='6. Historical Wholesale'!H66 -> 0 | I66: 0 | J66: 0 | L66: ='6. Historical Wholesale'!L66 -> 0 | M66: 0 | N66: 0 | P66: 0
B67: June | D67: ='6. Historical Wholesale'!D67 -> 0 | E67: 0 | F67: 0 | H67: ='6. Historical Wholesale'!H67 -> 0 | I67: 0 | J67: 0 | L67: ='6. Historical Wholesale'!L67 -> 0 | M67: 0 | N67: 0 | P67: 0
B68: July | D68: ='6. Historical Wholesale'!D68 -> 0 | E68: 0 | F68: 0 | H68: ='6. Historical Wholesale'!H68 -> 0 | I68: 0 | J68: 0 | L68: ='6. Historical Wholesale'!L68 -> 0 | M68: 0 | N68: 0 | P68: 0
B69: August | D69: ='6. Historical Wholesale'!D69 -> 0 | E69: 0 | F69: 0 | H69: ='6. Historical Wholesale'!H69 -> 0 | I69: 0 | J69: 0 | L69: ='6. Historical Wholesale'!L69 -> 0 | M69: 0 | N69: 0 | P69: 0
B70: September | D70: ='6. Historical Wholesale'!D70 -> 0 | E70: 0 | F70: 0 | H70: ='6. Historical Wholesale'!H70 -> 0 | I70: 0 | J70: 0 | L70: ='6. Historical Wholesale'!L70 -> 0 | M70: 0 | N70: 0 | P70: 0
B71: October | D71: ='6. Historical Wholesale'!D71 -> 0 | E71: 0 | F71: 0 | H71: ='6. Historical Wholesale'!H71 -> 0 | I71: 0 | J71: 0 | L71: ='6. Historical Wholesale'!L71 -> 0 | M71: 0 | N71: 0 | P71: 0
B72: November | D72: ='6. Historical Wholesale'!D72 -> 0 | E72: 0 | F72: 0 | H72: ='6. Historical Wholesale'!H72 -> 0 | I72: 0 | J72: 0 | L72: ='6. Historical Wholesale'!L72 -> 0 | M72: 0 | N72: 0 | P72: 0
B73: December | D73: ='6. Historical Wholesale'!D73 -> 0 | E73: 0 | F73: 0 | H73: ='6. Historical Wholesale'!H73 -> 0 | I73: 0 | J73: 0 | L73: ='6. Historical Wholesale'!L73 -> 0 | M73: 0 | N73: 0 | P73: 0
B75: Total | D75: =SUM(D62:D73) -> 0 | E75: =IF(D75<>0,F75/D75,0) -> 0 | F75: =SUM(F62:F73) -> 0 | H75: =SUM(H62:H73) -> 0 | I75: =IF(H75<>0,J75/H75,0) -> 0 | J75: =SUM(J62:J73) -> 0 | L75: =SUM(L62:L73) -> 0 | M75: =IF(L75<>0,N75/L75,0) -> 0 | N75: =SUM(N62:N73) -> 0 | P75: =SUM(P62:P73) -> 0
B77: ='6. Historical Wholesale'!B77 -> Add Extra Host Here (II) | D77: Network | H77: Line Connection | L77: Transformation Connection | P77: Total Line
B79: Month | D79: Units Billed | E79: Rate | F79: Amount | H79: Units Billed | I79: Rate | J79: Amount | L79: Units Billed | M79: Rate | N79: Amount | P79: Amount
B81: January | D81: ='6. Historical Wholesale'!D81 -> 0 | E81: ='5. UTRs and Sub-Transmission'!J66 -> 0 | F81: =D81*E81 -> 0 | H81: ='6. Historical Wholesale'!H81 -> 0 | I81: ='5. UTRs and Sub-Transmission'!J68 -> 0 | J81: =H81*I81 -> 0 | L81: ='6. Historical Wholesale'!L81 -> 0 | M81: ='5. UTRs and Sub-Transmission'!J70 -> 0 | N81: =L81*M81 -> 0 | P81: =J81+N81 -> 0
B82: February | D82: ='6. Historical Wholesale'!D82 -> 0 | E82: =E81 -> 0 | F82: 0 | H82: ='6. Historical Wholesale'!H82 -> 0 | I82: =I81 -> 0 | J82: 0 | L82: ='6. Historical Wholesale'!L82 -> 0 | M82: =M81 -> 0 | N82: 0 | P82: 0
B83: March | D83: ='6. Historical Wholesale'!D83 -> 0 | E83: 0 | F83: 0 | H83: ='6. Historical Wholesale'!H83 -> 0 | I83: 0 | J83: 0 | L83: ='6. Historical Wholesale'!L83 -> 0 | M83: 0 | N83: 0 | P83: 0
B84: April | D84: ='6. Historical Wholesale'!D84 -> 0 | E84: 0 | F84: 0 | H84: ='6. Historical Wholesale'!H84 -> 0 | I84: 0 | J84: 0 | L84: ='6. Historical Wholesale'!L84 -> 0 | M84: 0 | N84: 0 | P84: 0
B85: May | D85: ='6. Historical Wholesale'!D85 -> 0 | E85: 0 | F85: 0 | H85: ='6. Historical Wholesale'!H85 -> 0 | I85: 0 | J85: 0 | L85: ='6. Historical Wholesale'!L85 -> 0 | M85: 0 | N85: 0 | P85: 0
B86: June | D86: ='6. Historical Wholesale'!D86 -> 0 | E86: 0 | F86: 0 | H86: ='6. Historical Wholesale'!H86 -> 0 | I86: 0 | J86: 0 | L86: ='6. Historical Wholesale'!L86 -> 0 | M86: 0 | N86: 0 | P86: 0
B87: July | D87: ='6. Historical Wholesale'!D87 -> 0 | E87: 0 | F87: 0 | H87: ='6. Historical Wholesale'!H87 -> 0 | I87: 0 | J87: 0 | L87: ='6. Historical Wholesale'!L87 -> 0 | M87: 0 | N87: 0 | P87: 0
B88: August | D88: ='6. Historical Wholesale'!D88 -> 0 | E88: 0 | F88: 0 | H88: ='6. Historical Wholesale'!H88 -> 0 | I88: 0 | J88: 0 | L88: ='6. Historical Wholesale'!L88 -> 0 | M88: 0 | N88: 0 | P88: 0
B89: September | D89: ='6. Historical Wholesale'!D89 -> 0 | E89: 0 | F89: 0 | H89: ='6. Historical Wholesale'!H89 -> 0 | I89: 0 | J89: 0 | L89: ='6. Historical Wholesale'!L89 -> 0 | M89: 0 | N89: 0 | P89: 0
B90: October | D90: ='6. Historical Wholesale'!D90 -> 0 | E90: 0 | F90: 0 | H90: ='6. Historical Wholesale'!H90 -> 0 | I90: 0 | J90: 0 | L90: ='6. Historical Wholesale'!L90 -> 0 | M90: 0 | N90: 0 | P90: 0
B91: November | D91: ='6. Historical Wholesale'!D91 -> 0 | E91: 0 | F91: 0 | H91: ='6. Historical Wholesale'!H91 -> 0 | I91: 0 | J91: 0 | L91: ='6. Historical Wholesale'!L91 -> 0 | M91: 0 | N91: 0 | P91: 0
B92: December | D92: ='6. Historical Wholesale'!D92 -> 0 | E92: 0 | F92: 0 | H92: ='6. Historical Wholesale'!H92 -> 0 | I92: 0 | J92: 0 | L92: ='6. Historical Wholesale'!L92 -> 0 | M92: 0 | N92: 0 | P92: 0
B94: Total | D94: =SUM(D81:D92) -> 0 | E94: =IF(D94<>0,F94/D94,0) -> 0 | F94: =SUM(F81:F92) -> 0 | H94: =SUM(H81:H92) -> 0 | I94: =IF(H94<>0,J94/H94,0) -> 0 | J94: =SUM(J81:J92) -> 0 | L94: =SUM(L81:L92) -> 0 | M94: =IF(L94<>0,N94/L94,0) -> 0 | N94: =SUM(N81:N92) -> 0 | P94: =SUM(P81:P92) -> 0
B96: Total | D96: Network | H96: Line Connection | L96: Transformation Connection | P96: Total Line
B98: Month | D98: Units Billed | E98: Rate | F98: Amount | H98: Units Billed | I98: Rate | J98: Amount | L98: Units Billed | M98: Rate | N98: Amount | P98: Amount
B100: January | D100: =D24+D43+D62+D81 -> 29621 | E100: =IF(D100<>0,F100/D100,0) -> 3.61 | F100: =F24+F43+F62+F81 -> 106931.81 | H100: =H24+H43+H62+H81 -> 30466 | I100: =IF(H100<>0,J100/H100,0) -> 0.95 | J100: =J24+J43+J62+J81 -> 28942.7 | L100: =L24+L43+L62+L81 -> 0 | M100: =IF(L100<>0,N100/L100,0) -> 0 | N100: =N24+N43+N62+N81 -> 0 | P100: =J100+N100 -> 28942.7
B101: February | D101: =D25+D44+D63+D82 -> 28431 | E101: 3.61 | F101: 102635.91 | H101: =H25+H44+H63+H82 -> 29064 | I101: 0.95 | J101: =J25+J44+J63+J82 -> 27610.8 | L101: =L25+L44+L63+L82 -> 0 | M101: 0 | N101: =N25+N44+N63+N82 -> 0 | P101: 27610.8
B102: March | D102: 25727 | E102: 3.61 | F102: 92874.47 | H102: =H26+H45+H64+H83 -> 28350 | I102: 0.95 | J102: =J26+J45+J64+J83 -> 26932.5 | L102: =L26+L45+L64+L83 -> 0 | M102: 0 | N102: =N26+N45+N64+N83 -> 0 | P102: 26932.5
B103: April | D103: 23482 | E103: 3.61 | F103: 84770.02 | H103: =H27+H46+H65+H84 -> 25708 | I103: 0.95 | J103: =J27+J46+J65+J84 -> 24422.6 | L103: =L27+L46+L65+L84 -> 0 | M103: 0 | N103: =N27+N46+N65+N84 -> 0 | P103: 24422.6
B104: May | D104: 28884 | E104: 3.61 | F104: 104271.24 | H104: =H28+H47+H66+H85 -> 29333 | I104: 0.95 | J104: =J28+J47+J66+J85 -> 27866.35 | L104: =L28+L47+L66+L85 -> 0 | M104: 0 | N104: =N28+N47+N66+N85 -> 0 | P104: 27866.35
B105: June | D105: 33800 | E105: 3.61 | F105: 122018 | H105: =H29+H48+H67+H86 -> 37569 | I105: 0.95 | J105: =J29+J48+J67+J86 -> 35690.55 | L105: =L29+L48+L67+L86 -> 0 | M105: 0 | N105: =N29+N48+N67+N86 -> 0 | P105: 35690.55
B106: July | D106: 38152 | E106: 3.61 | F106: 137728.72 | H106: =H30+H49+H68+H87 -> 39199 | I106: 0.95 | J106: =J30+J49+J68+J87 -> 37239.05 | L106: =L30+L49+L68+L87 -> 0 | M106: 0 | N106: =N30+N49+N68+N87 -> 0 | P106: 37239.05
B107: August | D107: 39158 | E107: 3.61 | F107: 141360.38 | H107: =H31+H50+H69+H88 -> 39414 | I107: 0.95 | J107: =J31+J50+J69+J88 -> 37443.3 | L107: =L31+L50+L69+L88 -> 0 | M107: 0 | N107: =N31+N50+N69+N88 -> 0 | P107: 37443.3
B108: September | D108: 37381 | E108: 3.61 | F108: 134945.41 | H108: =H32+H51+H70+H89 -> 39910 | I108: 0.95 | J108: =J32+J51+J70+J89 -> 37914.5 | L108: =L32+L51+L70+L89 -> 0 | M108: 0 | N108: =N32+N51+N70+N89 -> 0 | P108: 37914.5
B109: October | D109: 26658 | E109: 3.61 | F109: 96235.38 | H109: =H33+H52+H71+H90 -> 28019 | I109: 0.95 | J109: =J33+J52+J71+J90 -> 26618.05 | L109: =L33+L52+L71+L90 -> 0 | M109: 0 | N109: =N33+N52+N71+N90 -> 0 | P109: 26618.05
B110: November | D110: 25655 | E110: 3.61 | F110: 92614.55 | H110: =H34+H53+H72+H91 -> 27774 | I110: 0.95 | J110: =J34+J53+J72+J91 -> 26385.3 | L110: =L34+L53+L72+L91 -> 0 | M110: 0 | N110: =N34+N53+N72+N91 -> 0 | P110: 26385.3
B111: December | D111: 30952 | E111: 3.61 | F111: 111736.72 | H111: =H35+H54+H73+H92 -> 32517 | I111: 0.95 | J111: =J35+J54+J73+J92 -> 30891.15 | L111: =L35+L54+L73+L92 -> 0 | M111: 0 | N111: =N35+N54+N73+N92 -> 0 | P111: 30891.15
B113: Total | D113: =SUM(D100:D111) -> 367901 | E113: =IF(D113<>0,F113/D113,0) -> 3.61 | F113: =SUM(F100:F111) -> 1328122.61 | H113: =SUM(H100:H111) -> 387323 | I113: =IF(H113<>0,J113/H113,0) -> 0.95 | J113: =SUM(J100:J111) -> 367956.85 | L113: =SUM(L100:L111) -> 0 | M113: =IF(L113<>0,N113/L113,0) -> 0 | N113: =SUM(N100:N111) -> 0 | P113: =SUM(P100:P111) -> 367956.85
N115: Low Voltage Switchgear Credit (if applicable) | P115: ='5. UTRs and Sub-Transmission'!J75 -> 0
N117: Total including deduction for Low Voltage Switchgear Credit | P117: =P113+P115 -> 367956.85

Sheet 9. RTSR Rates to Forecast
A13: The purpose of this sheet is to re-align the current RTS Network Rates to recover current wholesale network costs.
A15: Rate Class | B15: Rate Description | C15: Unit | D15: Current RTSR-Network | E15: Loss Adjusted Billed kWh | F15: Billed kW | G15: Billed Amount | H15: Billed Amount % | I15: Current Wholesale Billing | J15: Adjusted RTSR Network
A17: Residential | B17: RTSR - Network | C17: kWh | D17: 0.0071 | E17: 73708854.22 | G17: =ROUND(D17*E17, 2) -> 523332.86 | H17: =G17/1385205.71 -> 0.3778015469 | I17: =H17*total_current_wholesale_network -> 501766.7765 | J17: =IF(ISERROR(I17/E17), 0, I17/E17) -> 0.006807415226
A18: General Service Less Than 50 kW | B18: RTSR - Network | C18: kWh | D18: 0.0065 | E18: 42276847.23 | G18: =ROUND(D18*E18, 2) -> 274799.51 | H18: 0.1983817335 | I18: 263475.2657 | J18: =IF(ISERROR(I18/E18), 0, I18/E18) -> 0.006232140827
A19: General Service 50 to 4,999 kW | B19: RTSR - Network | C19: kW | D19: 2.641 | F19: 122962.26 | G19: =ROUND(D19*F19, 2) -> 324743.33 | H19: 0.2344368982 | I19: 311360.9451 | J19: =IF(ISERROR(I19/F19), 0, I19/F19) -> 2.53216674
A20: General Service 50 to 4,999 kW – Interval Metered | B20: RTSR - Network | C20: kW | D20: 2.8543 | F20: 89639.54 | G20: =ROUND(D20*F20, 2) -> 255858.14 | H20: 0.184707685 | I20: 245314.4527 | J20: =IF(ISERROR(I20/F20), 0, I20/F20) -> 2.736676836
A21: Unmetered Scattered Load | B21: RTSR - Network | C21: kWh | D21: 0.0065 | E21: 260263.1813 | G21: =ROUND(D21*E21, 2) -> 1691.71 | H21: 0.001221269872 | I21: 1621.99613 | J21: =IF(ISERROR(I21/E21), 0, I21/E21) -> 0.006232138261
A22: Street Lighting | B22: RTSR - Network | C22: kW | D22: 1.9914 | F22: 2400.4 | G22: =ROUND(D22*F22, 2) -> 4780.16 | H22: 0.003450866514 | I22: 4583.173842 | J22: =IF(ISERROR(I22/F22), 0, I22/F22) -> 1.909337544
A24: The purpose of this table is to re-align the current RTS Connection Rates to recover current wholesale connection costs.
A25: Rate Class | B25: Rate Description | C25: Unit | D25: Current RTSR-Connection | E25: Loss Adjusted Billed kWh | F25: Billed kW | G25: Billed Amount | H25: Billed Amount % | I25: Current Wholesale Billing | J25: Adjusted RTSR-Connection
A27: Residential | B27: RTSR - Connection | C27: kWh | D27: 0.0017 | E27: 73708854.22 | G27: =ROUND(D27*E27, 2) -> 125305.05 | H27: =G27/389641.92 -> 0.3215902693 | I27: =H27*Total_Current_Wholesale_Lineplus -> 118331.3425 | J27: =IF(ISERROR(I27/E27), 0, I27/E27) -> 0.00160538844
A28: General Service Less Than 50 kW | B28: RTSR - Connection | C28: kWh | D28: 0.0017 | E28: 42276847.23 | G28: =ROUND(D28*E28, 2) -> 71870.64 | H28: 0.1844530486 | I28: 67870.76273 | J28: =IF(ISERROR(I28/E28), 0, I28/E28) -> 0.001605388461
A29: General Service 50 to 4,999 kW | B29: RTSR - Connection | C29: kW | D29: 0.5641 | F29: 122962.26 | G29: =ROUND(D29*F29, 2) -> 69363.01 | H29: 0.1780173191 | I29: 65502.69197 | J29: =IF(ISERROR(I29/F29), 0, I29/F29) -> 0.5327056609
A30: General Service 50 to 4,999 kW – Interval Metered | B30: RTSR - Connection | C30: kW | D30: 1.3567 | F30: 89639.54 | G30: =ROUND(D30*F30, 2) -> 121613.96 | H30: 0.3121172383 | I30: 114845.6758 | J30: =IF(ISERROR(I30/F30), 0, I30/F30) -> 1.281194391
A31: Unmetered Scattered Load | B31: RTSR - Connection | C31: kWh | D31: 0.0017 | E31: 260263.1813 | G31: =ROUND(D31*E31, 2) -> 442.45 | H31: 0.001135529771 | I31: 417.8259574 | J31: =IF(ISERROR(I31/E31), 0, I31/E31) -> 0.001605397872
A32: Street Lighting | B32: RTSR - Connection | C32: kW | D32: 0.4361 | F32: 2400.4 | G32: =ROUND(D32*F32, 2) -> 1046.81 | H32: 0.002686594913 | I32: 988.5510013 | J32: =IF(ISERROR(I32/F32), 0, I32/F32) -> 0.4118276126
A34: The purpose of this table is to update the re-aligned RTS Network Rates to recover future wholesale network costs.
A35: Rate Class | B35: Rate Description | C35: Unit | D35: Adjusted RTSR-Network | E35: Loss Adjusted Billed kWh | F35: Billed kW | G35: Billed Amount | H35: Billed Amount % | I35: Current Wholesale Billing | J35: Proposed RTSR-Network
A37: Residential | B37: RTSR - Network | C37: kWh | D37: 0.006807415226 | E37: 73708854.22 | G37: =IF(ISERROR(D37*E37), 0, ROUND(D37*E37, 2)) -> 501766.78 | H37: =G37/1328122.62 -> 0.3778015467 | I37: =H37*forecast_wholesale_network -> 501766.7762 | J37: =IF(ISERROR(I37/E37), 0, I37/E37) -> 0.006807415222
A38: General Service Less Than 50 kW | B38: RTSR - Network | C38: kWh | D38: 0.006232140827 | E38: 42276847.23 | G38: =IF(ISERROR(D38*E38), 0, ROUND(D38*E38, 2)) -> 263475.27 | H38: 0.1983817353 | I38: 263475.268 | J38: =IF(ISERROR(I38/E38), 0, I38/E38) -> 0.006232140883
A39: General Service 50 to 4,999 kW | B39: RTSR - Network | C39: kW | D39: 2.53216674 | F39: 122962.26 | G39: =ROUND(D39*F39, 2) -> 311360.95 | H39: 0.2344369001 | I39: 311360.9477 | J39: =IF(ISERROR(I39/F39), 0, I39/F39) -> 2.532166761
A40: General Service 50 to 4,999 kW – Interval Metered | B40: RTSR - Network | C40: kW | D40: 2.736676836 | F40: 89639.54 | G40: =ROUND(D40*F40, 2) -> 245314.45 | H40: 0.1847076816 | I40: 245314.4482 | J40: =IF(ISERROR(I40/F40), 0, I40/F40) -> 2.736676785
A41: Unmetered Scattered Load | B41: RTSR - Network | C41: kWh | D41: 0.006232138261 | E41: 260263.1813 | G41: =IF(ISERROR(D41*E41), 0, ROUND(D41*E41, 2)) -> 1622 | H41: 0.001221272777 | I41: 1621.999988 | J41: =IF(ISERROR(I41/E41), 0, I41/E41) -> 0.006232153084
A42: Street Lighting | B42: RTSR - Network | C42: kW | D42: 1.909337544 | F42: 2400.4 | G42: =ROUND(D42*F42, 2) -> 4583.17 | H42: 0.003450863596 | I42: 4583.169965 | J42: =IF(ISERROR(I42/F42), 0, I42/F42) -> 1.90933593
A44: The purpose of this table is to update the re-aligned RTS Connection Rates to recover future wholesale connection costs.
A45: Rate Class | B45: Rate Description | C45: Unit | D45: Adjusted RTSR-Connection | E45: Loss Adjusted Billed kWh | F45: Billed kW | G45: Billed Amount | H45: Billed Amount % | I45: Current Wholesale Billing | J45: Proposed RTSR-Connection
A47: Residential | B47: RTSR - Connection | C47: kWh | D47: 0.00160538844 | E47: 73708854.22 | G47: =ROUND(D47*E47, 2) -> 118331.34 | H47: =G47/367956.85 -> 0.3215902626 | I47: =H47*forecast_wholesale_lineplus -> 118331.34 | J47: =IF(ISERROR(I47/E47), 0, I47/E47) -> 0.001605388406
A48: General Service Less Than 50 kW | B48: RTSR - Connection | C48: kWh | D48: 0.001605388461 | E48: 42276847.23 | G48: =ROUND(D48*E48, 2) -> 67870.76 | H48: 0.1844530412 | I48: 67870.76 | J48: =IF(ISERROR(I48/E48), 0, I48/E48) -> 0.001605388397
A49: General Service 50 to 4,999 kW | B49: RTSR - Connection | C49: kW | D49: 0.5327056609 | F49: 122962.26 | G49: =ROUND(D49*F49, 2) -> 65502.69 | H49: 0.1780173137 | I49: 65502.69 | J49: =IF(ISERROR(I49/F49), 0, I49/F49) -> 0.5327056448
A50: General Service 50 to 4,999 kW – Interval Metered | B50: RTSR - Connection | C50: kW | D50: 1.281194391 | F50: 89639.54 | G50: =ROUND(D50*F50, 2) -> 114845.68 | H50: 0.3121172496 | I50: 114845.68 | J50: =IF(ISERROR(I50/F50), 0, I50/F50) -> 1.281194437
A51: Unmetered Scattered Load | B51: RTSR - Connection | C51: kWh | D51: 0.001605397872 | E51: 260263.1813 | G51: =ROUND(D51*E51, 2) -> 417.83 | H51: 0.001135540757 | I51: 417.83 | J51: =IF(ISERROR(I51/E51), 0, I51/E51) -> 0.001605413405
A52: Street Lighting | B52: RTSR - Connection | C52: kW | D52: 0.4118276126 | F52: 2400.4 | G52: =ROUND(D52*F52, 2) -> 988.55 | H52: 0.002686592191 | I52: 988.55 | J52: =IF(ISERROR(I52/F52), 0, I52/F52) -> 0.4118271955

Sheet hidden1 (hidden)
A1: =IF('3. Rate Classes'!L17=1, '3. Rate Classes'!C17, "") -> Residential | B1: 1
A2: =IF('3. Rate Classes'!L18=1, '3. Rate Classes'!C18, "") -> General Service Less Than 50 kW | B2: 2
A3: =IF('3. Rate Classes'!L19=1, '3. Rate Classes'!C19, "") -> General Service 50 to 4,999 kW | B3: 3
A4: =IF('3. Rate Classes'!L20=1, '3. Rate Classes'!C20, "") -> General Service 50 to 4,999 kW – Interval Metered | B4: 4
A5: =IF('3. Rate Classes'!L21=1, '3. Rate Classes'!C21, "") -> Unmetered Scattered Load | B5: 5
A6: =IF('3. Rate Classes'!L22=1, '3. Rate Classes'!C22, "") -> Street Lighting | B6: 6
A7: =IF('3. Rate Classes'!L23=1, '3. Rate Classes'!C23, "") ->  | B7: 7
A8: =IF('3. Rate Classes'!L24=1, '3. Rate Classes'!C24, "") ->  | B8: 8
A9: =IF('3. Rate Classes'!L25=1, '3. Rate Classes'!C25, "") ->  | B9: 9
A10: =IF('3. Rate Classes'!L26=1, '3. Rate Classes'!C26, "") ->  | B10: 10
A11: =IF('3. Rate Classes'!L27=1, '3. Rate Classes'!C27, "") ->  | B11: 11
A12: =IF('3. Rate Classes'!L28=1, '3. Rate Classes'!C28, "") ->  | B12: 12
A13: =IF('3. Rate Classes'!L29=1, '3. Rate Classes'!C29, "") ->  | B13: 13
A14: =IF('3. Rate Classes'!L30=1, '3. Rate Classes'!C30, "") ->  | B14: 14
A15: =IF('3. Rate Classes'!L31=1, '3. Rate Classes'!C31, "") ->  | B15: 15
A16: =IF('3. Rate Classes'!L32=1, '3. Rate Classes'!C32, "") ->  | B16: 16
A17: =IF('3. Rate Classes'!L33=1, '3. Rate Classes'!C33, "") ->  | B17: 17
A18: =IF('3. Rate Classes'!L34=1, '3. Rate Classes'!C34, "") ->  | B18: 18
A19: =IF('3. Rate Classes'!L35=1, '3. Rate Classes'!C35, "") ->  | B19: 19
A20: =IF('3. Rate Classes'!L36=1, '3. Rate Classes'!C36, "") ->  | B20: 20
A21: =IF('3. Rate Classes'!L37=1, '3. Rate Classes'!C37, "") ->  | B21: 21
A22: =IF('3. Rate Classes'!L38=1, '3. Rate Classes'!C38, "") ->  | B22: 22
